bitfinex-derivatives/quotes_SOLF0:USTF0_20251107
["timestamp","ask_amount","ask_price","bid_price","bid_amount"]
[1762532239283,5.8055,155.14,155.09,0.04695564]
[1762532239482,8.9055,155.14,155.09,0.04695564]
[1762532239686,3.1,155.14,155.09,2.98695564]
[1762532239891,8.9059,155.13,155.09,0.04695564]
[1762532240387,3.1,155.17,155.09,2.98695564]
[1762532241983,5.8055,155.14,155.09,2.98695564]
[1762532242483,8.9055,155.14,155.09,2.98695564]
[1762532242680,3.1,155.12,155.09,0.04695564]
[1762532242884,3.1,155.15,155.09,0.04722974]
[1762532243697,3.1,155.14,155.09,0.04722974]
[1762532243879,3.1,155.17,155.09,2.98722974]
[1762532244081,3.1,155.17,155.11,0.04528906]
[1762532244392,8.9055,155.14,155.11,0.04528906]
[1762532244887,3.1,155.14,155.11,0.04528906]
[1762532245489,3.1,155.12,155.0,2.94]
[1762532246004,3.1,155.12,155.01,8.7502]
[1762532246488,0.04781432,155.08,155.05,0.04801865]
[1762532246692,0.04781432,155.08,155.05,2.98801865]
[1762532246891,3.1,155.16,155.05,2.98801865]
[1762532247186,3.1,155.15,155.05,2.94]
[1762532247597,3.1,155.15,155.05,8.7487]
[1762532247787,3.1,155.15,155.08,0.0427127]
[1762532248190,3.1,155.09,155.08,0.0427127]
[1762532248490,3.1,155.09,155.07,0.04917538]
[1762532248795,3.1,155.07,155.06,0.0459622]
[1762532251492,3.1,155.07,154.93,5.61585819]
[1762532251792,5.8093,155.04,154.96,2.94]
[1762532252090,8.9592,155.04,154.96,2.94]
[1762532252393,3.15,155.04,154.96,2.94]
[1762532252589,3.15,155.04,154.98,0.04879807]
[1762532252796,3.1959622,155.02,154.98,0.04879807]
[1762532253992,8.9604,155.01,154.98,0.04879807]
[1762532254389,3.15,155.01,154.98,0.04879807]
[1762532254591,3.15,154.99,154.98,0.04879807]
[1762532255185,5.812,154.97,154.9,3.05]
[1762532255992,5.8123,154.96,154.9,3.05]
[1762532256195,3.15,154.94,154.91,0.04425133]
[1762532256399,0.04889456,154.94,154.91,3.09886264]
[1762532256592,3.15,155.03,154.94,8.8627]
[1762532256791,3.15,155.03,154.94,3.05]
[1762532257095,3.15,155.07,154.96,8.862]
[1762532257396,3.15,155.07,154.97,3.05]
[1762532257597,9.00516571,155.04,155.0,0.04589714]
[1762532257794,3.19586571,155.04,155.0,0.04589714]
[1762532258699,0.04586571,155.04,155.0,3.09589714]
[1762532259195,0.04586571,155.04,155.0,8.90639714]
[1762532259389,0.04586571,155.04,155.01,3.05]
[1762532259590,3.19586571,155.04,155.0,0.04589714]
[1762532260201,0.04586571,155.04,155.0,3.09589714]
[1762532260401,3.11586571,155.04,155.0,0.04589714]
[1762532261896,3.07,155.01,155.0,0.04589714]
[1762532263701,0.04586571,155.04,155.0,0.04589714]
[1762532263702,3.07,155.03,155.0,0.04589714]
[1762532264101,8.8798,155.03,155.0,0.04589714]
[1762532264696,3.07,155.02,155.0,0.04589714]
[1762532265397,8.8801,155.02,155.0,0.04589714]
[1762532265599,8.01232368,155.01,155.0,0.04589714]
[1762532265803,3.07,155.0,154.93,3.18]
[1762532266003,4.94232368,154.99,154.93,3.18]
[1762532266202,3.07,155.0,154.93,3.18]
[1762532266808,0.04564528,154.98,154.95,0.04191703]
[1762532268302,0.04564528,154.98,154.95,3.22191703]
[1762532268494,3.07,155.03,154.95,0.04191703]
[1762532268699,8.01923838,155.02,154.93,3.18]
[1762532268897,4.94923838,155.01,154.94,5.8129]
[1762532269101,3.07,155.02,154.94,5.8129]
[1762532269300,4.94887352,155.01,154.94,5.8129]
[1762532269602,3.11611757,155.0,154.96,0.04872276]
[1762532269906,3.07,154.98,154.96,0.04872276]
[1762532270201,8.02076714,154.97,154.96,0.04872276]
[1762532270601,3.07,154.96,154.91,349.08769557]
[1762532270804,3.07,154.94,154.86,5.61585819]
[1762532271106,3.07,154.94,154.86,8.79585819]
[1762532271300,8.8831,154.94,154.86,8.79585819]
[1762532271503,3.07,154.94,154.86,8.79585819]
[1762532271712,0.04659234,154.92,154.88,3.22557445]
[1762532273999,3.11659234,154.92,154.88,0.04557445]
[1762532276909,0.04659234,154.92,154.88,3.22557445]
[1762532278205,0.04659234,154.92,154.89,3.18]
[1762532278709,0.04659234,154.92,154.9,5.8144]
[1762532279009,3.07,154.99,154.91,3.18]
[1762532279207,3.07,154.99,154.92,5.61585819]
[1762532279412,3.07,154.99,154.93,5.8132]
[1762532279799,3.07,154.99,154.94,0.04411398]
[1762532280108,0.04618398,154.98,154.95,8.9925]
[1762532280407,0.04275087,154.98,154.95,0.04446313]
[1762532281299,0.04275087,154.98,154.95,3.22446313]
[1762532281512,0.04275087,154.98,154.97,3.18]
[1762532282411,3.07,155.03,154.98,3.19]
[1762532282713,8.8384,155.07,154.98,8.80585819]
[1762532282907,19.50166428,155.14,154.89,5.61585819]
[1762532282908,5.98204271,155.15,155.02,5.8099]
[1762532283110,3.03,155.15,155.05,3.19]
[1762532283408,3.03,155.12,155.04,5.61585819]
[1762532283606,3.03,155.11,155.06,0.04695394]
[1762532283810,5.8077,155.09,155.07,0.04514302]
[1762532284013,3.03,155.12,155.07,0.04514302]
[1762532284501,3.03,155.1,155.07,0.04514302]
[1762532285617,3.03,155.14,155.07,0.04514302]
[1762532285814,8.8357,155.14,155.07,0.04514302]
[1762532286013,3.03,155.13,155.07,0.04514302]
[1762532286511,5.61585819,155.19,155.07,3.23514302]
[1762532286512,5.8049,155.16,155.07,3.23514302]
[1762532286711,8.8349,155.16,155.1,0.04374095]
[1762532287007,8.8353,155.15,155.1,0.04374095]
[1762532287207,3.03,155.18,155.11,0.04492294]
[1762532287809,3.03,155.16,155.11,0.04492294]
[1762532289008,3.03,155.13,155.11,0.04492294]
[1762532289812,8.8362,155.13,155.11,0.04492294]
[1762532290012,3.03,155.12,155.11,0.04492294]
[1762532290407,3.03,155.19,155.11,0.04492294]
[1762532290603,3.03,155.19,155.11,3.23492294]
[1762532291410,3.03,155.19,155.11,9.04152294]
[1762532291602,3.03,155.19,155.11,3.23492294]
[1762532291803,3.03,155.23,155.11,3.23492294]
[1762532292007,3.03,155.23,155.15,0.04193094]
[1762532292616,5.8044,155.18,155.15,0.04193094]
[1762532292816,3.03,155.17,155.15,0.04193094]
[1762532293021,3.03,155.17,155.05,3.19]
[1762532293320,3.03,155.14,155.06,3.19]
[1762532293716,5.8063,155.13,155.06,3.19]
[1762532294124,0.04742806,155.11,155.08,0.04608877]
[1762532295325,8.88442806,155.11,155.08,0.04608877]
[1762532296314,3.07742806,155.11,155.08,0.04608877]
[1762532298415,5.8074,155.1,155.08,0.04608877]
[1762532298720,3.07742806,155.11,155.08,0.04608877]
[1762532299515,3.03,155.1,155.08,0.04608877]
[1762532300311,0.04742806,155.11,155.08,0.04608877]
[1762532300824,3.07742806,155.11,155.08,0.04608877]
[1762532301516,0.04742806,155.11,155.08,0.04608877]
[1762532303119,3.07742806,155.11,155.08,0.04608877]
[1762532303324,0.04742806,155.11,155.08,0.04608877]
[1762532304119,8.88442806,155.11,155.08,0.04608877]
[1762532304424,3.03,155.1,155.08,0.04608877]
[1762532304922,3.07742806,155.11,155.08,0.04608877]
[1762532305125,0.04742806,155.11,155.08,0.04608877]
[1762532306329,3.03,155.19,155.08,3.23608877]
[1762532306530,5.8043,155.18,155.11,5.8066]
[1762532306733,3.03,155.18,155.08,3.19]
[1762532307224,3.03,155.18,155.04,3.19]
[1762532307425,3.03,155.16,155.09,0.04494002]
[1762532307629,3.03,155.1,155.09,0.04494002]
[1762532310729,3.03,155.09,155.0,345.50340944]
[1762532311325,5.8096,155.04,154.96,3.19]
[1762532311827,0.04494002,155.02,155.0,3.19]
[1762532312328,0.04494002,155.02,154.99,0.04522984]
[1762532312529,0.04494002,155.02,154.99,3.00522984]
[1762532313235,3.23,155.09,155.01,2.96]
[1762532313635,9.0377,155.09,155.04,2.96]
[1762532314131,9.0377,155.09,155.05,0.04833496]
[1762532314437,3.23,155.06,155.05,0.04833496]
[1762532314639,3.23,155.06,154.97,2.96]
[1762532315136,5.81,155.03,154.97,2.96]
[1762532315329,3.23,155.06,154.97,2.96]
[1762532315635,9.56087749,155.12,155.0,0.04925712]
[1762532315636,3.27477222,155.03,155.0,0.04925712]
[1762532315837,3.27731727,155.03,155.0,0.04426439]
[1762532316232,3.27731727,155.03,154.88,9.56087749]
[1762532316233,3.23,155.02,154.89,2.96]
[1762532316435,3.23,154.98,154.89,2.96]
[1762532317136,0.04615978,154.95,154.92,3.00743071]
[1762532317736,3.23,155.03,154.92,3.00743071]
[1762532318038,3.23,155.03,154.88,9.56087749]
[1762532318039,5.8106,155.01,154.93,8.7733]
[1762532318739,0.04643957,154.99,154.95,0.04342084]
[1762532319233,0.04643957,154.99,154.95,3.00342084]
[1762532319633,0.04643957,154.99,154.97,2.96]
[1762532320240,0.04643957,154.99,154.97,8.7718]
[1762532320539,0.04643957,154.99,154.95,0.04342084]
[1762532320540,5.8091,155.05,154.98,3.04]
[1762532320734,3.23,155.07,154.98,3.04]
[1762532320941,3.08,155.11,154.98,3.04]
[1762532321342,5.8077,155.09,155.02,5.8099]
[1762532321532,5.8077,155.09,155.03,0.0439526]
[1762532321837,3.08,155.11,155.03,0.0439526]
[1762532322430,8.8869,155.11,155.03,3.0839526]
[1762532322638,3.08,155.11,155.03,3.0839526]
[1762532323035,5.8076,155.09,155.03,8.8934526]
[1762532323433,3.08,155.11,155.03,3.0839526]
[1762532323833,5.8066,155.12,155.04,3.04]
[1762532324235,5.8066,155.12,155.0,9.56087749]
[1762532324236,4.94181285,155.13,155.06,3.08535781]
[1762532324439,3.08,155.17,155.06,3.08535781]
[1762532324641,3.08,155.15,155.1,0.04211321]
[1762532324934,8.8854,155.15,155.11,0.04307562]
[1762532325141,4.94082882,155.17,155.11,0.04307562]
[1762532325343,3.08,155.19,155.11,0.04307562]
[1762532325636,4.94034544,155.18,155.11,0.04307562]
[1762532325845,4.94034544,155.17,155.11,0.04307562]
[1762532326142,3.08,155.15,155.11,0.04307562]
[1762532326343,3.08,155.15,155.11,0.04413411]
[1762532327043,4.94197231,155.18,155.11,0.04413411]
[1762532327229,8.02197231,155.17,155.11,0.04413411]
[1762532327436,8.02197231,155.16,155.11,0.04413411]
[1762532327744,3.08,155.16,155.11,0.04413411]
[1762532327940,4.94285272,155.15,155.11,0.04413411]
[1762532328144,3.08,155.13,155.03,3.04]
[1762532328343,3.08,155.11,155.03,3.04]
[1762532328837,5.8062,155.13,155.04,3.04]
[1762532329037,3.08,155.15,155.04,3.04]
[1762532329243,3.12250884,155.11,155.08,0.04790318]
[1762532329544,5.8072,155.1,155.08,0.04790318]
[1762532329745,3.12250884,155.11,155.08,0.04790318]
[1762532331042,3.12250884,155.11,155.08,3.08790318]
[1762532331043,0.04250884,155.11,155.08,3.08790318]
[1762532331437,3.12250884,155.11,155.08,0.04790318]
[1762532331842,8.92940884,155.11,155.08,0.04790318]
[1762532332644,5.84940884,155.11,155.08,0.04790318]
[1762532333134,0.04250884,155.11,155.08,0.04790318]
[1762532334046,0.04250884,155.11,155.08,3.08790318]
[1762532334842,0.04250884,155.11,155.1,3.04]
[1762532335140,5.8051,155.16,155.1,3.04]
[1762532335141,3.08,155.19,155.1,3.04]
[1762532335540,5.8046,155.17,155.1,8.8469]
[1762532335949,5.8046,155.17,155.12,3.08750927]
[1762532337546,8.884,155.19,155.12,3.08750927]
[1762532337746,3.08,155.19,155.12,3.08750927]
[1762532339946,8.884,155.19,155.13,5.8059]
[1762532340349,3.08,155.19,155.12,3.08750927]
[1762532340747,5.8043,155.18,155.12,3.08750927]
[1762532340945,4.91919643,155.21,155.12,3.08750927]
[1762532341140,3.08,155.26,155.13,3.04]
[1762532341340,3.08,155.26,155.16,3.04]
[1762532341543,3.08,155.26,155.19,3.08588957]
[1762532341741,7.99379094,155.3,155.21,5.8029]
[1762532341943,3.08,155.3,155.21,3.04]
[1762532342139,3.08,155.3,155.24,0.04610366]
[1762532342352,3.05,155.28,155.24,0.04610366]
[1762532342552,5.8002,155.29,155.24,3.04195578]
[1762532343047,5.7994,155.31,155.24,3.04195578]
[1762532343254,3.05,155.32,155.24,3.04195578]
[1762532343558,3.05,155.32,155.25,3.0]
[1762532343747,3.05,155.37,155.25,3.0]
[1762532344044,8.8479,155.35,155.29,0.04424876]
[1762532344241,3.05,155.35,155.3,3.04410047]
[1762532344445,3.05,155.35,155.31,0.04195132]
[1762532344644,3.05,155.32,155.31,0.04195132]
[1762532344845,3.05,155.32,155.3,0.04541377]
[1762532345439,3.05,155.36,155.3,0.04541377]
[1762532345845,3.05,155.31,155.3,0.04541377]
[1762532347549,5.799,155.32,155.3,0.04541377]
[1762532347550,8.849,155.32,155.3,0.04541377]
[1762532347749,3.05,155.34,155.3,0.04541377]
[1762532348353,5.7987,155.33,155.3,0.04541377]
[1762532348648,3.05,155.39,155.3,0.04541377]
[1762532348848,3.05,155.39,155.33,0.04938336]
[1762532349454,3.05,155.37,155.33,0.04938336]
[1762532349851,3.05,155.37,155.23,62.0]
[1762532349852,3.05,155.34,155.23,5.8021]
[1762532350152,3.05,155.34,155.24,3.0]
[1762532350355,5.7999,155.3,155.24,3.0]
[1762532350951,11.5935,155.38,155.2,9.56087749]
[1762532350952,0.04578447,155.29,155.25,3.04196808]
[1762532351246,0.04560317,155.29,155.25,3.04145419]
[1762532351441,3.05,155.4,155.29,5.7999]
[1762532351848,3.05,155.4,155.3,3.0]
[1762532352148,3.05,155.4,155.31,3.0]
[1762532352447,5.7976,155.36,155.34,0.04386433]
[1762532352958,8.8476,155.36,155.34,0.04386433]
[1762532353455,3.05,155.35,155.34,0.04386433]
[1762532353663,5.7976,155.36,155.34,0.04386433]
[1762532354446,3.05,155.35,155.34,0.04386433]
[1762532354953,5.7976,155.36,155.34,0.04386433]
[1762532355155,8.8476,155.36,155.34,0.04386433]
[1762532355353,3.05,155.35,155.34,0.04386433]
[1762532356558,3.05,155.32,155.24,12.56087749]
[1762532356761,3.05,155.32,155.24,3.0]
[1762532357058,3.05,155.29,155.24,3.0]
[1762532357561,0.04203079,155.28,155.25,0.04877173]
[1762532359162,0.04203079,155.28,155.25,3.04877173]
[1762532360958,0.04203079,155.28,155.25,0.04877173]
[1762532361565,8.89263079,155.28,155.25,0.04877173]
[1762532361869,3.09203079,155.28,155.25,0.04877173]
[1762532362064,0.04203079,155.28,155.25,0.04877173]
[1762532362264,3.09203079,155.28,155.25,0.04877173]
[1762532362864,5.801,155.27,155.25,0.04877173]
[1762532363065,3.05,155.26,155.25,0.04877173]
[1762532363266,3.05,155.26,155.18,2.67106]
[1762532363267,3.05,155.26,155.19,3.0]
[1762532363674,5.802,155.24,155.19,3.0]
[1762532363869,3.05,155.26,155.18,2.67106]
[1762532364267,8.8528,155.22,155.2,0.04927351]
[1762532364470,3.05,155.21,155.2,0.04927351]
[1762532364972,5.8455066,155.24,155.2,0.04927351]
[1762532365275,3.05,155.23,155.2,0.04927351]
[1762532365671,8.8524,155.23,155.2,0.04927351]
[1762532366269,3.05,155.23,155.2,0.04927351]
[1762532366464,0.0434066,155.24,155.2,0.04927351]
[1762532366679,0.0434066,155.24,155.2,3.04927351]
[1762532367687,0.0434066,155.24,155.23,3.0]
[1762532367870,4.87618167,155.31,155.23,3.0]
[1762532368071,3.05,155.31,155.23,3.0]
[1762532368373,3.05,155.31,155.23,8.8021]
[1762532368580,3.05,155.31,155.19,3.0]
[1762532368779,0.04860385,155.27,155.23,0.04546627]
[1762532369073,5.84960385,155.27,155.23,0.04546627]
[1762532369275,0.04860385,155.27,155.23,0.04546627]
[1762532369470,0.04860385,155.27,155.23,3.04546627]
[1762532369775,0.04860385,155.27,155.23,0.04546627]
[1762532369776,3.09860385,155.27,155.23,0.04546627]
[1762532370278,8.89960385,155.27,155.23,0.04546627]
[1762532370480,3.05,155.26,155.23,0.04546627]
[1762532371770,0.04860385,155.27,155.23,0.04546627]
[1762532371771,3.05,155.24,155.23,0.04546627]
[1762532372176,4.33,155.24,155.23,0.04546627]
[1762532372381,2.92,155.22,155.18,2.67106]
[1762532372978,2.92,155.26,155.19,3.15]
[1762532373376,5.8473283,155.24,155.21,0.04319417]
[1762532373780,0.0453283,155.24,155.21,3.19319417]
[1762532373976,2.9653283,155.24,155.21,0.04319417]
[1762532374486,2.92,155.22,155.21,0.04319417]
[1762532375387,0.0453283,155.24,155.21,3.19319417]
[1762532375589,0.0453283,155.24,155.21,0.04319417]
[1762532377491,0.0453283,155.24,155.22,3.15]
[1762532377992,0.0453283,155.24,155.21,0.04319417]
[1762532378192,0.0453283,155.24,155.22,3.15]
[1762532378892,0.0453283,155.24,155.22,8.9525]
[1762532379394,0.0453283,155.24,155.22,3.15]
[1762532380391,0.0453283,155.24,155.21,0.04319417]
[1762532381189,0.0453283,155.24,155.21,2.99319417]
[1762532381495,0.0453283,155.24,155.21,0.04319417]
[1762532382392,0.0453283,155.24,155.21,2.99319417]
[1762532383197,0.0453283,155.24,155.22,2.95]
[1762532386388,0.0453283,155.24,155.21,0.04319417]
[1762532386593,0.0453283,155.24,155.21,2.99319417]
[1762532387494,5.99776103,155.31,155.21,5.64482735]
[1762532387800,446.4643885,155.39,155.24,5.8018]
[1762532387801,2.98,155.34,155.24,5.8018]
[1762532388003,4.8616515,155.33,155.25,2.95]
[1762532388196,4.8616515,155.32,155.25,2.95]
[1762532388392,2.98,155.34,155.25,2.95]
[1762532388698,0.04177262,155.31,155.28,2.99721495]
[1762532388899,4.86062064,155.37,155.28,2.99721495]
[1762532389096,4.85936095,155.39,155.33,2.95]
[1762532389290,2.98,155.4,155.33,2.95]
[1762532389996,2.98,155.4,155.35,0.04848988]
[1762532390200,2.98,155.4,155.35,2.99848988]
[1762532390796,2.98,155.4,155.35,0.04848988]
[1762532391192,4.85670906,155.41,155.35,0.04848988]
[1762532391401,2.98,155.42,155.35,0.04848988]
[1762532391594,2.98,155.41,155.37,0.04121285]
[1762532393602,5.7952,155.42,155.37,0.04121285]
[1762532393603,5.7945,155.44,155.37,2.99121285]
[1762532394004,2.98,155.45,155.37,2.99121285]
[1762532395004,5.7948,155.43,155.37,2.99121285]
[1762532395598,5.7942,155.45,155.37,2.99121285]
[1762532396603,5.7942,155.45,155.38,2.95]
[1762532396806,2.98,155.46,155.38,2.95]
[1762532397003,2.98,155.46,155.4,0.04782387]
[1762532397605,2.98,155.44,155.4,0.04782387]
[1762532397908,2.98,155.44,155.4,0.04620609]
[1762532398106,8.7736,155.46,155.41,2.95]
[1762532398409,2.98,155.46,155.42,0.04801189]
[1762532398910,5.7945,155.44,155.42,0.04801189]
[1762532400314,2.98,155.43,155.42,0.04801189]
[1762532400516,8.7745,155.44,155.42,0.04801189]
[1762532401809,2.98,155.43,155.42,0.04801189]
[1762532402211,5.60163318,155.49,155.42,3.21801189]
[1762532402212,8.75163318,155.49,155.42,3.21801189]
[1762532402416,3.15,155.48,155.42,3.21801189]
[1762532402709,5.7942,155.45,155.43,0.04284895]
[1762532403009,3.15,155.49,155.43,0.04284895]
[1762532403214,3.15,155.52,155.43,3.21284895]
[1762532403623,3.15,155.48,155.43,0.04284895]
[1762532403811,5.7951,155.42,155.34,347.58803988]
[1762532404011,3.15,155.45,155.36,0.04343376]
[1762532404210,5.60163318,155.46,155.36,0.04343376]
[1762532404409,3.15,155.42,155.39,0.04895733]
[1762532404610,3.15,155.42,155.39,0.04188709]
[1762532404814,8.9454,155.41,155.39,0.04188709]
[1762532405011,5.7954,155.41,155.39,0.04188709]
[1762532405414,8.9454,155.41,155.39,0.04188709]
[1762532405716,3.15,155.45,155.39,0.04188709]
[1762532406020,3.15,155.45,155.4,3.21309311]
[1762532406210,3.15,155.49,155.4,3.21309311]
[1762532406724,5.7937,155.46,155.4,3.21309311]
[1762532406912,3.15,155.49,155.4,3.21309311]
[1762532407220,5.7941,155.45,155.4,3.21309311]
[1762532407421,3.15,155.49,155.4,3.21309311]
[1762532408009,3.15,155.49,155.42,5.7949]
[1762532408215,3.15,155.49,155.44,0.04854777]
[1762532408420,5.7929,155.48,155.44,0.04854777]
[1762532408614,5.7929,155.48,155.44,3.21854777]
[1762532409031,11.5805,155.55,155.44,3.21854777]
[1762532409032,3.15,155.54,155.44,3.21854777]
[1762532409222,3.15,155.54,155.47,0.04260062]
[1762532409518,5.791,155.53,155.47,0.04260062]
[1762532409827,5.791,155.53,155.47,3.21260062]
[1762532410023,3.15,155.54,155.47,3.21260062]
[1762532410622,5.7915,155.52,155.47,3.21260062]
[1762532410829,8.9415,155.52,155.47,3.21260062]
[1762532411015,3.15,155.52,155.47,3.21260062]
[1762532411325,3.15,155.59,155.48,5.60163318]
[1762532411623,3.15,155.66,155.52,3.21642737]
[1762532411814,3.15,155.66,155.58,3.17]
[1762532412017,4.9442583,155.7,155.58,3.17]
[1762532412214,3.15,155.7,155.6,3.21091442]
[1762532412419,3.15,155.7,155.63,0.04638075]
[1762532412626,8.9347,155.7,155.63,0.04638075]
[1762532412826,3.15,155.7,155.63,0.04638075]
[1762532413328,3.15,155.7,155.63,3.21638075]
[1762532413929,3.15,155.74,155.63,3.21638075]
[1762532414228,3.15,155.74,155.67,0.04768994]
[1762532414419,5.7842,155.72,155.67,0.04768994]
[1762532414623,3.15,155.74,155.67,3.21768994]
[1762532415322,8.0942583,155.79,155.67,3.21768994]
[1762532415521,3.15,155.78,155.71,0.04088176]
[1762532415919,3.15,155.76,155.71,0.04088176]
[1762532416521,5.7831,155.75,155.71,0.04088176]
[1762532416731,3.15,155.75,155.71,0.04088176]
[1762532416933,3.15,155.79,155.71,0.04088176]
[1762532417229,3.15,155.77,155.71,0.04088176]
[1762532417427,3.15,155.77,155.63,3.17]
[1762532417732,3.15,155.74,155.63,3.17]
[1762532418629,0.04470122,155.7,155.67,0.04545043]
[1762532419132,3.19470122,155.7,155.67,0.04545043]
[1762532419822,3.15,155.68,155.59,3.17]
[1762532420330,5.60163318,155.69,155.53,3.17]
[1762532420331,3.15,155.65,155.53,3.17]
[1762532420727,3.15,155.61,155.53,3.17]
[1762532420932,3.15,155.58,155.55,0.04915008]
[1762532421128,3.19142702,155.58,155.55,0.04197758]
[1762532421322,8.9394,155.57,155.55,0.04197758]
[1762532421522,5.7894,155.57,155.55,0.04197758]
[1762532421736,0.04142702,155.58,155.55,3.21197758]
[1762532422542,14.38681941,155.7,155.55,3.21197758]
[1762532422543,3.15,155.7,155.55,3.21197758]
[1762532422722,3.15,155.7,155.55,3.17]
[1762532423132,5.7858,155.67,155.58,3.17]
[1762532423530,0.04434834,155.64,155.62,3.17]
[1762532423731,3.15,155.7,155.62,3.17]
[1762532423732,5.7849,155.7,155.62,3.17]
[1762532424132,3.15,155.74,155.62,3.17]
[1762532424432,3.15,155.79,155.62,3.17]
[1762532424635,3.15,155.77,155.69,0.04804261]
[1762532424834,3.15,155.77,155.71,0.04892735]
[1762532425036,5.7842,155.72,155.71,0.04892735]
[1762532425230,8.9342,155.72,155.71,0.04892735]
[1762532425436,4.43,155.72,155.61,3.17]
[1762532425636,5.7853,155.69,155.61,3.17]
[1762532425841,3.15,155.72,155.61,3.17]
[1762532426026,5.7869,155.64,155.6,2.72107]
[1762532426232,3.15,155.71,155.61,3.17]
[1762532426641,5.7859,155.67,155.64,0.0433572]
[1762532426940,0.04464369,155.68,155.64,3.2133572]
[1762532427638,0.04464369,155.68,155.64,0.0433572]
[1762532428341,3.19464369,155.68,155.64,0.0433572]
[1762532428538,0.04464369,155.68,155.64,0.0433572]
[1762532428740,0.04464369,155.68,155.64,3.2133572]
[1762532429040,5.786,155.67,155.64,0.0433572]
[1762532429334,0.04464369,155.68,155.64,0.0433572]
[1762532429538,0.04464369,155.68,155.64,3.2133572]
[1762532431439,4.84130484,155.78,155.64,3.2133572]
[1762532431629,3.15,155.78,155.64,3.17]
[1762532432239,5.7842,155.72,155.65,3.13]
[1762532432440,5.7842,155.72,155.67,0.04742983]
[1762532432837,3.1,155.75,155.68,3.13]
[1762532433048,5.7832,155.74,155.68,3.13]
[1762532433239,3.1,155.8,155.68,3.13]
[1762532433541,3.1,155.8,155.6,2.72107]
[1762532433542,3.1,155.8,155.7,3.13]
[1762532433738,9.49693432,155.85,155.73,3.17238095]
[1762532433939,5.7802,155.82,155.75,3.13]
[1762532434140,3.1,155.87,155.77,3.17133963]
[1762532434339,3.1,155.87,155.77,3.13]
[1762532434545,3.1,155.91,155.8,3.17238269]
[1762532434740,3.1,155.91,155.84,0.04860176]
[1762532434941,5.7786,155.87,155.84,0.04860176]
[1762532435146,3.1,155.91,155.84,0.04860176]
[1762532435442,5.7776,155.89,155.84,3.17860176]
[1762532435643,3.1,155.91,155.84,3.17860176]
[1762532435839,3.1,155.91,155.84,0.04860176]
[1762532436040,5.7781,155.88,155.84,3.17860176]
[1762532436347,89.8312,155.97,155.84,3.17860176]
[1762532436348,3.1,155.97,155.84,3.17860176]
[1762532436650,3.1,155.97,155.89,0.04308393]
[1762532437641,5.7771,155.91,155.89,0.04308393]
[1762532438239,8.8771,155.91,155.89,0.04308393]
[1762532438440,5.7771,155.91,155.89,0.04308393]
[1762532439045,5.7761,155.93,155.89,3.17308393]
[1762532439246,3.1,155.95,155.89,0.04308393]
[1762532439447,8.8759,155.94,155.89,0.04308393]
[1762532439639,3.1,155.94,155.89,0.04308393]
[1762532439840,9.49693432,155.98,155.89,0.04308393]
[1762532440048,9.49693432,156.02,155.89,3.17308393]
[1762532440242,9.49693432,156.02,155.94,0.040722]
[1762532440444,9.49693432,156.03,155.94,0.040722]
[1762532440647,9.49693432,156.03,155.97,0.04534555]
[1762532441550,5.7741,155.99,155.97,0.04534555]
[1762532442347,0.68,156.01,155.97,0.04534555]
[1762532442950,0.68,155.98,155.97,0.04534555]
[1762532443143,0.68,156.02,155.87,3.01]
[1762532443348,5.7724,156.03,155.93,5.7757]
[1762532443545,0.68,156.07,155.94,3.01]
[1762532444053,0.68,156.04,155.94,3.01]
[1762532444250,0.72074544,156.02,155.99,0.04623968]
[1762532444454,5.7734,156.0,155.99,0.04623968]
[1762532444648,0.72074544,156.02,155.99,0.04623968]
[1762532445458,0.04074544,156.02,155.99,0.04623968]
[1762532445659,0.68,156.15,155.99,3.05623968]